lending/lending_fUSD_20250408
["ID","MTS","AMOUNT","RATE_DAILY","PERIOD"]
[357537322,1744131149310,-508.06,0.00031232,2]
[357537323,1744131149320,-513.92,0.00031232,2]
[357537324,1744131149330,-2000.0,0.00031232,2]
[357537325,1744131149343,-1465.9,0.00031232,2]
[357537326,1744131149354,-500.0,0.00031232,2]
[357537327,1744131149364,-568.34,0.00031232,2]
[357537328,1744131149376,-583.31,0.00031232,2]
[357537329,1744131149387,-627.5,0.00031232,2]
[357537330,1744131149397,-500.0,0.00031232,2]
[357537331,1744131149408,-500.0,0.00031232,2]
[357537332,1744131149419,-500.0,0.00031232,2]
[357537333,1744131149429,-500.0,0.00031232,2]
[357537334,1744131149440,-570.96,0.00031232,2]
[357537335,1744131149450,-500.0,0.00031232,2]
[357537336,1744131149461,-702.55,0.00031232,2]
[357537337,1744131149471,-500.0,0.00031232,2]
[357537338,1744131149482,-500.0,0.00031232,2]
[357537339,1744131149491,-627.68,0.00031232,2]
[357537340,1744131149501,-600.21,0.00031232,2]
[357537341,1744131149512,-717.93,0.00031232,2]
[357537342,1744131149849,-525.64,0.00031232,2]
[357537343,1744131149862,-683.46,0.00031232,2]
[357537344,1744131149873,-500.0,0.00031232,2]
[357537345,1744131149883,-500.0,0.00031232,2]
[357537346,1744131149893,-537.7,0.00031232,2]
[357537347,1744131149902,-500.0,0.00031232,2]
[357537348,1744131149912,-1354.7,0.00031232,2]
[357537349,1744131149921,-748.01,0.00031232,2]
[357537350,1744131149932,-1010.61,0.00031232,2]
[357537351,1744131149942,-500.0,0.00031232,2]
[357537352,1744131149952,-564.61,0.00031232,2]
[357537353,1744131149962,-500.0,0.00031232,2]
[357537354,1744131149972,-500.0,0.00031232,2]
[357537355,1744131149982,-790.51,0.00031232,2]
[357537356,1744131149992,-500.0,0.00031232,2]
[357537357,1744131150002,-1476.66,0.00031232,2]
[357537358,1744131150013,-500.0,0.00031232,2]
[357537359,1744131150022,-500.0,0.00031232,2]
[357537360,1744131150032,-655.26,0.00031232,2]
[357537361,1744131150043,-500.0,0.00031232,2]
[357537362,1744131150053,-737.15,0.00031232,2]
[357537363,1744131150063,-539.63,0.00031232,2]
[357537364,1744131150074,-500.0,0.00031232,2]
[357537365,1744131150084,-500.0,0.00031232,2]
[357537366,1744131150095,-703.81,0.00031232,2]
[357537367,1744131150109,-677.2,0.00031232,2]
[357537368,1744131150119,-959.99,0.00031232,2]
[357537369,1744131150129,-704.21,0.00031232,2]
[357537370,1744131150138,-641.96,0.00031232,2]
[357537371,1744131150148,-505.48,0.00031232,2]
[357537372,1744131150158,-932.66,0.00031232,2]
[357537373,1744131150168,-812.56,0.00031232,2]
[357537374,1744131150178,-1465.75,0.00031232,2]
[357537375,1744131150189,-580.15,0.00031232,2]
[357537376,1744131150200,-888.6,0.00031232,2]
[357537377,1744131150209,-545.23,0.00031232,2]
[357537378,1744131150219,-889.0,0.00031232,2]
[357537379,1744131150229,-2260.02,0.00031232,2]
[357537380,1744131150239,-794.37,0.00031232,2]
[357537381,1744131150249,-500.0,0.00031232,2]
[357537382,1744131150258,-613.35,0.00031232,2]
[357537383,1744131150269,-500.0,0.00031232,2]
[357537384,1744131150278,-567.81,0.00031232,2]
[357537385,1744131150289,-808.98,0.00031232,2]
[357537386,1744131150299,-845.46,0.00031232,2]
[357537387,1744131150309,-593.3,0.00031232,2]
[357537388,1744131150319,-500.0,0.00031232,2]
[357537389,1744131150328,-581.16,0.00031232,2]
[357537390,1744131150341,-500.0,0.00031232,2]
[357537391,1744131150351,-878.06,0.00031232,2]
[357537392,1744131150361,-500.0,0.00031232,2]
[357537393,1744131150371,-1056.72,0.00031232,2]
[357537394,1744131150382,-500.0,0.00031232,2]
[357537395,1744131150392,-1037.85,0.00031232,2]
[357537396,1744131150402,-624.4,0.00031232,2]
[357537397,1744131150412,-500.0,0.00031232,2]
[357537398,1744131150422,-500.0,0.00031232,2]
[357537399,1744131150432,-500.0,0.00031232,2]
[357537400,1744131150442,-547.36,0.00031232,2]
[357537401,1744131150452,-500.0,0.00031232,2]
[357537402,1744131150462,-1221.73,0.00031232,2]
[357537403,1744131150471,-541.77,0.00031232,2]
[357537404,1744131150482,-1049.21,0.00031232,2]
[357537405,1744131150491,-500.0,0.00031232,2]
[357537406,1744131150501,-833.03,0.00031232,2]
[357537407,1744131150511,-500.0,0.00031232,2]
[357537408,1744131150521,-947.72,0.00031232,2]
[357537409,1744131150531,-2154.22,0.00031232,2]
[357537410,1744131150541,-915.59,0.00031232,2]
[357537411,1744131150550,-500.0,0.00031232,2]
[357537412,1744131150560,-715.09,0.00031232,2]
[357537413,1744131150571,-681.07,0.00031232,2]
[357537414,1744131150581,-806.29,0.00031232,2]
[357537415,1744131150591,-500.0,0.00031232,2]
[357537416,1744131150601,-596.17,0.00031232,2]
[357537417,1744131150611,-500.0,0.00031232,2]
[357537418,1744131150621,-623.11,0.00031232,2]
[357537419,1744131150632,-643.21,0.00031232,2]
[357537420,1744131150642,-895.87,0.00031232,2]
[357537421,1744131150651,-591.63,0.00031232,2]
[357537422,1744131150667,-840.88,0.00031232,2]
[357537423,1744131150678,-500.0,0.00031232,2]
[357537424,1744131150688,-915.65,0.00031232,2]
[357537425,1744131150699,-163.866528,0.00031232,7]
[357537426,1744131150709,-158.52803217,0.00031232,2]
[357537427,1744131150720,-2601.54,0.00031232,2]
[357537428,1744131150731,-6189.26,0.00031232,2]
[357537429,1744131150742,-1470.66,0.00031232,2]
[357537430,1744131150753,-500.0,0.00031232,2]
[357537431,1744131150764,-1161.33,0.00031232,2]
[357537432,1744131150780,-557.06,0.00031232,2]
[357537433,1744131150790,-500.0,0.00031232,2]
[357537434,1744131150801,-748.03,0.00031232,2]
[357537435,1744131150812,-1784.68,0.00031232,2]
[357537436,1744131150822,-736.96,0.00031232,2]
[357537437,1744131150832,-500.0,0.00031232,2]
[357537438,1744131150843,-802.54,0.00031232,2]
[357537439,1744131150854,-500.0,0.00031232,2]
[357537440,1744131150864,-500.0,0.00031232,2]
[357537441,1744131150874,-528.16,0.00031232,2]
[357537442,1744131150884,-880.64,0.00031232,2]
[357537443,1744131150894,-1759.78,0.00031232,2]
[357537444,1744131150905,-878.89,0.00031232,2]
[357537445,1744131150915,-939.58,0.00031232,2]
[357537446,1744131150926,-735.03,0.00031232,2]
[357537447,1744131150936,-524.35,0.00031232,2]
[357537448,1744131150947,-500.0,0.00031232,2]
[357537449,1744131150957,-500.0,0.00031232,2]
[357537450,1744131150967,-1127.76,0.00031232,2]
[357537451,1744131150977,-500.0,0.00031232,2]
[357537452,1744131150987,-151.0,0.00031232,7]
[357537453,1744131150998,-1017.57,0.00031232,2]
[357537454,1744131151008,-6178.64,0.00031232,2]
[357537455,1744131151018,-396.28,0.00031232,2]
[357537456,1744131151028,-513.55,0.00031232,2]
[357537457,1744131151038,-500.0,0.00031232,2]
[357537458,1744131151049,-950.17,0.00031232,2]
[357537459,1744131151059,-1089.76,0.00031232,2]
[357537460,1744131151069,-549.65,0.00031232,2]
[357537461,1744131151079,-239.28535,0.00031232,7]
[357537462,1744131151090,-578.6,0.00031232,2]
[357537463,1744131151101,-841.6,0.00031232,2]
[357537464,1744131151112,-1940.65,0.00031232,2]
[357537465,1744131151122,-671.05,0.00031232,2]
[357537466,1744131151133,-3839.98,0.00031232,2]
[357537467,1744131151143,-500.0,0.00031232,2]
[357537468,1744131151154,-500.0,0.00031232,2]
[357537469,1744131151164,-558.9,0.00031232,2]
[357537470,1744131151174,-151.0,0.00031232,7]
[357537471,1744131151184,-1739.52,0.00031232,2]
[357537472,1744131151194,-500.0,0.00031232,2]
[357537473,1744131151204,-500.0,0.00031232,2]
[357537474,1744131151215,-853.97,0.00031232,2]
[357537475,1744131151225,-727.58,0.00031232,2]
[357537476,1744131151234,-734.69,0.00031232,2]
[357537477,1744131151245,-1008.41,0.00031232,2]
[357537478,1744131151255,-990.1,0.00031232,2]
[357537479,1744131151266,-500.0,0.00031232,2]
[357537480,1744131151275,-737.46,0.00031232,2]
[357537481,1744131151285,-880.15,0.00031232,2]
[357537482,1744131151295,-500.0,0.00031232,2]
[357537483,1744131151304,-872.33,0.00031232,2]
[357537484,1744131151314,-825.98,0.00031232,2]
[357537485,1744131151324,-506.13,0.00031232,2]
[357537486,1744131151335,-2261.1,0.00031232,2]
[357537487,1744131151352,-636.79340799,0.00031232,2]
[357537488,1744131151363,-2351.91,0.00031232,2]
[357537489,1744131151373,-1830.5,0.00031232,2]
[357537490,1744131151383,-500.0,0.00031232,2]
[357537491,1744131151394,-727.88,0.00031232,2]
[357537492,1744131151404,-665.51,0.00031232,2]
[357537493,1744131151415,-1859.52,0.00031232,2]
[357537494,1744131151425,-986.07,0.00031232,2]
[357537495,1744131151435,-593.3,0.00031232,2]
[357537496,1744131151445,-500.0,0.00031232,2]
[357537497,1744131151456,-1483.68,0.00031232,2]
[357537498,1744131151467,-4169.04,0.00031232,2]
[357537499,1744131151478,-1258.57,0.00031232,2]
[357537500,1744131151489,-524.58,0.00031232,2]
[357537501,1744131151499,-500.0,0.00031232,2]
[357537502,1744131151509,-646.63,0.00031232,2]
[357537503,1744131151519,-808.53,0.00031232,2]
[357537504,1744131151530,-1146.51,0.00031232,2]
[357537505,1744131151540,-535.91,0.00031232,2]
[357537506,1744131151550,-24279.06,0.00031232,2]
[357537507,1744131151561,-500.0,0.00031232,2]
[357537508,1744131151571,-500.0,0.00031232,2]
[357537509,1744131151581,-500.0,0.00031232,2]
[357537510,1744131151593,-632.96,0.00031232,2]
[357537511,1744131151604,-1842.22,0.00031232,2]
[357537512,1744131151614,-892.34,0.00031232,2]
[357537513,1744131151624,-575.39,0.00031232,2]
[357537514,1744131151634,-735.43,0.00031232,2]
[357537515,1744131151645,-921.97,0.00031232,2]
[357537516,1744131151655,-1216.92,0.00031232,2]
[357537517,1744131151665,-589.43,0.00031232,2]
[357537518,1744131151675,-500.0,0.00031232,2]
[357537519,1744131151685,-500.0,0.00031232,2]
[357537520,1744131151695,-500.0,0.00031232,2]
[357537521,1744131151704,-646.32,0.00031232,2]
[357537522,1744131151714,-1299.3,0.00031232,2]
[357537523,1744131151724,-616.22,0.00031232,2]
[357537524,1744131151734,-4391.56,0.00031232,2]
[357537525,1744131151744,-735.03,0.00031232,2]
[357537526,1744131151754,-573.44,0.00031232,2]
[357537527,1744131151763,-830.9,0.00031232,2]
[357537528,1744131151774,-542.44,0.00031232,2]
[357537529,1744131151784,-1398.27,0.00031232,2]
[357537530,1744131151794,-500.0,0.00031232,2]
[357537531,1744131151804,-763.62,0.00031232,2]
[357537532,1744131151814,-745.57,0.00031232,2]
[357537533,1744131151824,-500.0,0.00031232,2]
[357537534,1744131151834,-1043.21,0.00031232,2]
[357537535,1744131151848,-812.8,0.00031232,2]
[357537536,1744131151859,-500.0,0.00031232,2]
[357537537,1744131151871,-836.32,0.00031232,2]
[357537538,1744131151881,-813.0,0.00031232,2]
[357537539,1744131151891,-500.0,0.00031232,2]
[357537540,1744131151902,-500.0,0.00031232,2]
[357537541,1744131151912,-684.15,0.00031232,2]
[357537542,1744131151922,-1564.46,0.00031232,2]
[357537543,1744131151932,-984.76,0.00031232,2]
[357537544,1744131151942,-615.97,0.00031232,2]
[357537545,1744131151952,-630.49,0.00031232,2]
[357537546,1744131151963,-780.29,0.00031232,2]
[357537547,1744131151973,-794.86,0.00031232,2]
[357537548,1744131151983,-918.03,0.00031232,2]
[357537549,1744131151994,-6319.24,0.00031232,2]
[357537550,1744131152004,-929.59,0.00031232,2]
[357537551,1744131152014,-1679.19,0.00031232,2]
[357537552,1744131152024,-500.0,0.00031232,2]
[357537553,1744131152034,-660.39,0.00031232,2]
[357537554,1744131152043,-500.0,0.00031232,2]
[357537555,1744131152053,-639.27,0.00031232,2]
[357537556,1744131152063,-500.0,0.00031232,2]
[357537557,1744131152072,-751.14,0.00031232,2]
[357537558,1744131152082,-725.42,0.00031232,2]
[357537559,1744131152094,-187.42519389,0.00031232,2]
[357537560,1744131152107,-779.2494315,0.00031351,4]
[357537561,1744131152117,-1000.0,0.00031396,2]
[357537562,1744131152126,-500.0,0.00031506,2]
[357537563,1744131152136,-500.0,0.00031506,2]
[357537564,1744131152146,-521.99,0.00031506,2]
[357537565,1744131152155,-500.0,0.00031506,2]
[357537566,1744131152165,-1012.34,0.00031506,2]
[357537567,1744131152176,-500.0,0.00031506,2]
[357537568,1744131152185,-1008.75,0.00031506,2]
[357537569,1744131152195,-572.69,0.00031506,2]
[357537570,1744131152206,-938.36,0.00031506,2]
[357537571,1744131152215,-500.0,0.00031506,2]
[357537572,1744131152224,-799.85,0.00031506,2]
[357537573,1744131152234,-500.0,0.00031506,2]
[357537574,1744131152243,-500.0,0.00031506,2]
[357537575,1744131152253,-500.0,0.00031506,2]
[357537576,1744131152262,-500.0,0.00031506,2]
[357537577,1744131152272,-500.0,0.00031506,2]
[357537578,1744131152282,-936.4,0.00031506,2]
[357537579,1744131152291,-500.0,0.00031506,2]
[357537580,1744131152301,-736.0,0.00031506,2]
[357537581,1744131152311,-500.0,0.00031506,2]
[357537582,1744131152321,-500.0,0.00031506,2]
[357537583,1744131152331,-550.93,0.00031506,2]
[357537584,1744131152343,-500.0,0.00031506,2]
[357537585,1744131152353,-621.25,0.00031506,2]
[357537586,1744131152488,-500.0,0.00031506,2]
[357537587,1744131152498,-500.0,0.00031506,2]
[357537588,1744131152507,-500.0,0.00031506,2]
[357537589,1744131152517,-1509.4,0.00031506,2]
[357537590,1744131152526,-768.18,0.00031506,2]
[357537591,1744131152536,-500.0,0.00031506,2]
[357537592,1744131152545,-734.29,0.00031506,2]
[357537593,1744131152554,-198.02787614,0.00031506,2]
[357537594,1744131152563,-707.17,0.00031506,2]
[357537595,1744131152573,-484.92608291,0.00031506,2]
[357537596,1744131152582,-509.41,0.00031506,2]
[357537597,1744131152593,-500.0,0.00031506,2]
[357537598,1744131152603,-500.0,0.00031506,2]
[357537599,1744131152612,-1220.84,0.00031506,2]
[357537600,1744131152622,-500.0,0.00031506,2]
[357537601,1744131152631,-500.0,0.00031506,2]
[357537602,1744131152641,-500.0,0.00031506,2]
[357537603,1744131152650,-500.0,0.00031506,2]
[357537604,1744131152660,-545.03,0.00031506,2]
[357537605,1744131152669,-500.0,0.00031506,2]
[357537606,1744131152678,-500.0,0.00031506,2]
[357537607,1744131152687,-500.0,0.00031506,2]
[357537608,1744131152696,-500.0,0.00031506,2]
[357537609,1744131152706,-1019.54,0.00031506,2]
[357537610,1744131152715,-1644.68,0.00031506,2]
[357537611,1744131152724,-538.21,0.00031506,2]
[357537612,1744131152734,-734.05,0.00031506,2]
[357537613,1744131152743,-500.0,0.00031506,2]
[357537614,1744131152752,-1425.74,0.00031506,2]
[357537615,1744131152762,-1187.81,0.00031506,2]
[357537616,1744131152771,-500.0,0.00031506,2]
[357537617,1744131152781,-500.0,0.00031506,2]
[357537618,1744131152790,-500.0,0.00031506,2]
[357537619,1744131152799,-500.0,0.00031506,2]
[357537620,1744131152809,-1273.1,0.00031506,2]
[357537621,1744131152818,-1048.09,0.00031506,2]
[357537622,1744131152827,-531.84,0.00031506,2]
[357537623,1744131152836,-500.0,0.00031506,2]
[357537624,1744131152848,-686.22,0.00031506,2]
[357537625,1744131152857,-643.82,0.00031506,2]
[357537626,1744131152867,-589.26,0.00031506,2]
[357537627,1744131152876,-530.29,0.00031506,2]
[357537628,1744131152886,-1739.87,0.00031506,2]
[357537629,1744131152895,-913.6,0.00031506,2]
[357537630,1744131152904,-500.0,0.00031506,2]
[357537631,1744131152914,-541.35,0.00031506,2]
[357537632,1744131152923,-500.0,0.00031506,2]
[357537633,1744131152932,-237.93011516,0.00031506,2]
[357537634,1744131152942,-524.83,0.00031506,2]
[357537635,1744131152951,-853.97,0.00031506,2]
[357537636,1744131152961,-500.0,0.00031506,2]
[357537637,1744131152970,-500.0,0.00031506,2]
[357537638,1744131152980,-1206.08,0.00031506,2]
[357537639,1744131152989,-500.0,0.00031506,2]
[357537640,1744131152999,-839.17,0.00031506,2]
[357537641,1744131153009,-500.0,0.00031506,2]
[357537642,1744131153019,-543.08372971,0.00031506,2]
[357537643,1744131153028,-1079.35,0.00031506,2]
[357537644,1744131153038,-646.6,0.00031506,2]
[357537645,1744131153047,-500.0,0.00031506,2]
[357537646,1744131153058,-1392.68,0.00031506,2]
[357537647,1744131153068,-1013.5,0.00031506,2]
[357537648,1744131153078,-1047.48,0.00031506,2]
[357537649,1744131153090,-500.0,0.00031506,2]
[357537650,1744131153101,-1138.94,0.00031506,2]
[357537651,1744131153111,-206.98474865,0.00031506,2]
[357537652,1744131153121,-500.0,0.00031506,2]
[357537653,1744131153131,-500.0,0.00031506,2]
[357537654,1744131153142,-571.65,0.00031506,2]
[357537655,1744131153151,-500.0,0.00031506,2]
[357537656,1744131153160,-985.93,0.00031506,2]
[357537657,1744131153170,-500.0,0.00031506,2]
[357537658,1744131153180,-500.0,0.00031506,2]
[357537659,1744131153189,-500.0,0.00031506,2]
[357537660,1744131153198,-500.0,0.00031506,2]
[357537661,1744131153208,-893.75,0.00031506,2]
[357537662,1744131153217,-882.81,0.00031506,2]
[357537663,1744131153227,-635.65,0.00031506,2]
[357537664,1744131153236,-500.0,0.00031506,2]
[357537665,1744131153245,-554.86,0.00031506,2]
[357537666,1744131153255,-500.0,0.00031506,2]
[357537667,1744131153265,-1285.07,0.00031506,2]
[357537668,1744131153276,-500.0,0.00031506,2]
[357537669,1744131153286,-815.01,0.00031506,2]
[357537670,1744131153296,-2250.35,0.00031506,2]
[357537671,1744131153306,-828.56,0.00031506,2]
[357537672,1744131153316,-553.89,0.00031506,2]
[357537673,1744131153326,-554.97,0.00031506,2]
[357537674,1744131153336,-571.07,0.00031506,2]
[357537675,1744131153347,-500.0,0.00031506,2]
[357537676,1744131153356,-500.0,0.00031506,2]
[357537677,1744131153366,-635.52,0.00031506,2]
[357537678,1744131153377,-500.0,0.00031506,2]
[357537679,1744131153388,-729.33,0.00031506,2]
[357537680,1744131153399,-500.0,0.00031506,2]
[357537681,1744131153410,-1155.37,0.00031506,2]
[357537682,1744131153419,-500.0,0.00031506,2]
[357537683,1744131153431,-683.43,0.00031506,2]
[357537684,1744131153441,-659.52,0.00031506,2]
[357537685,1744131153451,-959.29,0.00031506,2]
[357537686,1744131153461,-1042.58,0.00031506,2]
[357537687,1744131153471,-500.0,0.00031506,2]
[357537688,1744131153481,-500.0,0.00031506,2]
[357537689,1744131153491,-502.74,0.00031506,2]
[357537690,1744131153500,-500.0,0.00031506,2]
[357537691,1744131153510,-500.0,0.00031506,2]
[357537692,1744131153520,-500.0,0.00031506,2]
[357537693,1744131153531,-500.0,0.00031506,2]
[357537694,1744131153541,-651.5,0.00031506,2]
[357537695,1744131153551,-500.0,0.00031506,2]
[357537696,1744131153561,-594.23,0.00031506,2]
[357537697,1744131153570,-594.32,0.00031506,2]
[357537698,1744131153580,-764.58,0.00031506,2]
[357537699,1744131153592,-554.84,0.00031506,2]
[357537700,1744131153601,-1066.53,0.00031506,2]
[357537701,1744131153612,-784.39,0.00031506,2]
[357537702,1744131153621,-508.06,0.00031506,2]
[357537703,1744131153632,-513.92,0.00031506,2]
[357537704,1744131153642,-672.74709384,0.00031506,2]
[357537705,1744131153653,-401.27195474,0.00031506,2]
[357537706,1744131153663,-1465.9,0.00031506,2]
[357537707,1744131153673,-568.34,0.00031506,2]
[357537708,1744131153683,-583.31,0.00031506,2]
[357537709,1744131153694,-627.5,0.00031506,2]
[357537710,1744131153704,-500.0,0.00031506,2]
[357537711,1744131153714,-500.0,0.00031506,2]
[357537712,1744131153724,-500.0,0.00031506,2]
[357537713,1744131153734,-500.0,0.00031506,2]
[357537714,1744131153743,-570.96,0.00031506,2]
[357537715,1744131153754,-500.0,0.00031506,2]
[357537716,1744131153764,-702.55,0.00031506,2]
[357537717,1744131153773,-500.0,0.00031506,2]
[357537718,1744131153783,-500.0,0.00031506,2]
[357537719,1744131153793,-627.68,0.00031506,2]
[357537720,1744131153803,-600.21,0.00031506,2]
[357537721,1744131153813,-717.93,0.00031506,2]
[357537722,1744131153823,-525.64,0.00031506,2]
[357537723,1744131153832,-683.46,0.00031506,2]
[357537724,1744131153843,-500.0,0.00031506,2]
[357537725,1744131153853,-500.0,0.00031506,2]
[357537726,1744131153864,-537.7,0.00031506,2]
[357537727,1744131153873,-500.0,0.00031506,2]
[357537728,1744131153883,-1354.7,0.00031506,2]
[357537729,1744131153892,-748.01,0.00031506,2]
[357537730,1744131153902,-1010.61,0.00031506,2]
[357537731,1744131153912,-500.0,0.00031506,2]
[357537732,1744131153921,-564.61,0.00031506,2]
[357537733,1744131153930,-500.0,0.00031506,2]
[357537734,1744131153940,-500.0,0.00031506,2]
[357537735,1744131153950,-790.51,0.00031506,2]
[357537736,1744131153960,-500.0,0.00031506,2]
[357537737,1744131153970,-1476.66,0.00031506,2]
[357537738,1744131153980,-341.00129291,0.00031506,2]
[357537739,1744131153989,-500.0,0.00031506,2]
[357537740,1744131153999,-655.26,0.00031506,2]
[357537741,1744131154009,-500.0,0.00031506,2]
[357537742,1744131154019,-737.15,0.00031506,2]
[357537743,1744131154028,-539.63,0.00031506,2]
[357537744,1744131154038,-500.0,0.00031506,2]
[357537745,1744131154047,-500.0,0.00031506,2]
[357537746,1744131154058,-703.81,0.00031506,2]
[357537747,1744131154067,-677.2,0.00031506,2]
[357537748,1744131154078,-959.99,0.00031506,2]
[357537749,1744131154090,-704.21,0.00031506,2]
[357537750,1744131154101,-641.96,0.00031506,2]
[357537751,1744131154112,-505.48,0.00031506,2]
[357537752,1744131154121,-932.66,0.00031506,2]
[357537753,1744131154131,-812.56,0.00031506,2]
[357537754,1744131154142,-1465.75,0.00031506,2]
[357537755,1744131154151,-580.15,0.00031506,2]
[357537756,1744131154161,-888.6,0.00031506,2]
[357537757,1744131154171,-545.23,0.00031506,2]
[357537758,1744131154183,-889.0,0.00031506,2]
[357537759,1744131154194,-2260.02,0.00031506,2]
[357537760,1744131154204,-794.37,0.00031506,2]
[357537761,1744131154213,-500.0,0.00031506,2]
[357537762,1744131154223,-613.35,0.00031506,2]
[357537763,1744131154234,-567.81,0.00031506,2]
[357537764,1744131154244,-500.0,0.00031506,2]
[357537765,1744131154254,-808.98,0.00031506,2]
[357537766,1744131154264,-845.46,0.00031506,2]
[357537767,1744131154274,-593.3,0.00031506,2]
[357537768,1744131154284,-500.0,0.00031506,2]
[357537769,1744131154294,-581.16,0.00031506,2]
[357537770,1744131154304,-500.0,0.00031506,2]
[357537771,1744131154314,-878.06,0.00031506,2]
[357537772,1744131154324,-500.0,0.00031506,2]
[357537773,1744131154333,-1056.72,0.00031506,2]
[357537774,1744131154344,-500.0,0.00031506,2]
[357537775,1744131154353,-1037.85,0.00031506,2]
[357537776,1744131154363,-500.0,0.00031506,2]
[357537777,1744131154373,-624.4,0.00031506,2]
[357537778,1744131154383,-430.37367797,0.00031506,2]
[357537779,1744131154393,-318.44581911,0.00031506,2]
[357537780,1744131154402,-547.36,0.00031506,2]
[357537781,1744131154412,-500.0,0.00031506,2]
[357537782,1744131154421,-1221.73,0.00031506,2]
[357537783,1744131154430,-541.77,0.00031506,2]
[357537784,1744131154440,-1049.21,0.00031506,2]
[357537785,1744131154450,-255.74759114,0.00031506,2]
[357537786,1744131154459,-833.03,0.00031506,2]
[357537787,1744131154469,-500.0,0.00031506,2]
[357537788,1744131154479,-947.72,0.00031506,2]
[357537789,1744131154488,-2154.22,0.00031506,2]
[357537790,1744131154498,-915.59,0.00031506,2]
[357537791,1744131154507,-500.0,0.00031506,2]
[357537792,1744131154516,-715.09,0.00031506,2]
[357537793,1744131154526,-681.07,0.00031506,2]
[357537794,1744131154535,-806.29,0.00031506,2]
[357537795,1744131154545,-500.0,0.00031506,2]
[357537796,1744131154554,-596.17,0.00031506,2]
[357537797,1744131154564,-500.0,0.00031506,2]
[357537798,1744131154573,-623.11,0.00031506,2]
[357537799,1744131154583,-643.21,0.00031506,2]
[357537800,1744131154593,-895.87,0.00031506,2]
[357537801,1744131154603,-591.63,0.00031506,2]
[357537802,1744131154612,-840.88,0.00031506,2]
[357537803,1744131154621,-500.0,0.00031506,2]
[357537804,1744131154631,-915.65,0.00031506,2]
[357537805,1744131154640,-2601.54,0.00031506,2]
[357537806,1744131154650,-6189.26,0.00031506,2]
[357537807,1744131154660,-1470.66,0.00031506,2]
[357537808,1744131154669,-500.0,0.00031506,2]
[357537809,1744131154679,-1161.33,0.00031506,2]
[357537810,1744131154688,-557.06,0.00031506,2]
[357537811,1744131154697,-500.0,0.00031506,2]
[357537812,1744131154707,-748.03,0.00031506,2]
[357537813,1744131154717,-1784.68,0.00031506,2]
[357537814,1744131154726,-736.96,0.00031506,2]
[357537815,1744131154735,-500.0,0.00031506,2]
[357537816,1744131154745,-802.54,0.00031506,2]
[357537817,1744131154754,-500.0,0.00031506,2]
[357537818,1744131154763,-371.69009342,0.00031506,2]
[357537819,1744131154772,-528.16,0.00031506,2]
[357537820,1744131154781,-1759.78,0.00031506,2]
[357537821,1744131154790,-880.64,0.00031506,2]